bitfinex-derivatives/quotes_SOLF0:USTF0_20260302
["timestamp","ask_amount","ask_price","bid_price","bid_amount"]
[1772478442532,10.338,87.034,86.976,10.345]
[1772478442835,43.70332464,87.067,86.977,43.32708861]
[1772478443040,43.70332464,87.067,86.991,43.32708861]
[1772478443230,10.337,87.046,86.991,43.32708861]
[1772478443436,43.70332464,87.067,86.991,43.32708861]
[1772478443633,43.70332464,87.028,86.971,43.32708861]
[1772478443838,43.70332464,87.028,86.954,43.32708861]
[1772478444340,10.341,87.014,86.954,43.32708861]
[1772478444541,43.70332464,87.028,86.954,43.32708861]
[1772478445136,43.70332464,87.028,86.966,43.32708861]
[1772478445540,10.341,87.018,86.966,43.32708861]
[1772478445740,43.70332464,87.028,86.966,43.32708861]
[1772478446337,54.04332464,87.028,86.967,10.347]
[1772478446542,43.70332464,87.028,86.967,53.67408861]
[1772478446744,43.70332464,87.028,86.967,43.32708861]
[1772478446945,43.70332464,87.028,86.968,53.67408861]
[1772478447441,54.04332464,87.028,86.968,53.67408861]
[1772478448344,54.04332464,87.028,86.968,43.32708861]
[1772478448345,10.341,87.018,86.968,43.32708861]
[1772478448540,10.341,87.018,86.918,14.15356211]
[1772478448541,43.70332464,87.028,86.941,43.32708861]
[1772478449344,43.70332464,87.025,86.941,43.32708861]
[1772478449538,10.341,87.019,86.964,10.347]
[1772478449739,54.04432464,87.019,86.964,10.347]
[1772478450744,54.04432464,87.019,86.972,10.346]
[1772478450745,43.70332464,87.019,86.972,10.346]
[1772478451134,43.70332464,87.019,86.964,43.32708861]
[1772478451335,10.341,87.018,86.965,10.347]
[1772478451839,10.34,87.029,86.976,10.346]
[1772478452148,43.70332464,87.046,86.977,43.32708861]
[1772478452343,43.70332464,87.046,86.986,10.345]
[1772478453244,10.338,87.042,86.986,53.67208861]
[1772478453638,43.70332464,87.046,86.986,43.32708861]
[1772478453941,34.41,87.044,86.951,43.32708861]
[1772478454145,43.70332464,87.041,86.951,43.32708861]
[1772478454339,43.70332464,87.041,86.95,9.05938255]
[1772478454340,78.11332464,87.04,86.97,43.32708861]
[1772478454642,9.05938255,87.05,86.97,43.32708861]
[1772478454843,10.337,87.049,86.999,10.343]
[1772478455243,78.11332464,87.052,86.989,43.32708861]
[1772478455947,10.337,87.051,86.999,10.343]
[1772478456147,43.70332464,87.051,86.989,43.32708861]
[1772478456447,34.41,87.069,86.97,43.32708861]
[1772478456448,10.34,87.028,86.97,43.32708861]
[1772478456747,34.41,87.044,86.97,43.32708861]
[1772478456949,10.34,87.027,86.978,10.346]
[1772478457142,9.05938255,87.05,86.95,9.05938255]
[1772478457143,43.70332464,87.029,86.951,43.32708861]
[1772478457448,34.41,87.024,86.951,43.32708861]
[1772478457642,43.70332464,87.025,86.951,43.32708861]
[1772478457643,34.41,87.022,86.951,43.32708861]
[1772478457848,43.70332464,87.021,86.961,10.348]
[1772478458545,10.342,87.006,86.961,10.348]
[1772478459750,43.70332464,87.021,86.969,10.347]
[1772478460347,43.70332464,87.021,86.977,10.346]
[1772478460548,43.70332464,87.077,86.99,9.05938255]
[1772478460748,43.70332464,87.077,86.991,43.32708861]
[1772478460948,10.333,87.086,87.023,43.32708861]
[1772478461148,43.70332464,87.096,87.023,43.32708861]
[1772478461352,43.70332464,87.094,87.023,43.32708861]
[1772478461749,34.41,87.093,87.023,43.32708861]
[1772478461950,34.41,87.091,87.023,43.32708861]
[1772478462151,34.41,87.089,87.023,43.32708861]
[1772478462551,78.11332464,87.089,87.023,43.32708861]
[1772478463455,43.70332464,87.087,87.023,43.32708861]
[1772478464252,43.70332464,87.085,87.023,43.32708861]
[1772478464455,10.334,87.077,87.023,53.66708861]
[1772478465758,34.41,87.099,87.031,43.32708861]
[1772478465965,43.70332464,87.108,87.031,43.32708861]
[1772478466264,10.329,87.118,87.063,10.335]
[1772478466666,43.70332464,87.117,87.04,43.32708861]
[1772478466958,43.70332464,87.115,87.04,43.32708861]
[1772478467264,9.05938255,87.12,87.04,43.32708861]
[1772478467265,34.41,87.112,87.04,43.32708861]
[1772478467456,10.333,87.088,87.04,43.32708861]
[1772478467654,160.638,87.141,87.04,43.32708861]
[1772478467655,47.0386053,87.098,87.04,43.32708861]
[1772478467858,47.0386053,87.096,87.011,46.06103502]
[1772478468959,10.333,87.088,87.027,46.06103502]
[1772478469361,47.0386053,87.119,87.03,9.05938255]
[1772478469560,47.0386053,87.119,87.031,46.06103502]
[1772478469961,47.0386053,87.119,87.037,46.06103502]
[1772478470162,47.0386053,87.099,87.011,46.06103502]
[1772478471257,10.333,87.082,87.025,56.40103502]
[1772478471769,10.334,87.074,87.025,46.06103502]
[1772478472167,47.0386053,87.082,87.002,46.06103502]
[1772478472360,10.336,87.058,87.002,46.06103502]
[1772478472863,10.336,87.058,87.003,56.40403502]
[1772478473367,10.337,87.05,87.003,56.40403502]
[1772478475975,47.0386053,87.077,87.011,56.40303502]
[1772478476375,47.0386053,87.077,87.011,46.06103502]
[1772478477573,10.335,87.066,87.012,10.341]
[1772478477774,10.335,87.066,87.012,56.40203502]
[1772478478677,10.336,87.058,87.012,56.40203502]
[1772478480175,10.335,87.066,87.012,56.40203502]
[1772478480578,47.0386053,87.077,87.02,46.06103502]
[1772478480781,34.41,87.095,87.02,46.06103502]
[1772478480975,81.4486053,87.095,87.02,46.06103502]
[1772478481176,34.41,87.093,87.02,46.06103502]
[1772478481376,47.0386053,87.077,87.001,46.06103502]
[1772478481876,9.05938255,87.1,87.0,9.05938255]
[1772478481877,34.41,87.093,87.032,46.06103502]
[1772478482782,10.333,87.086,87.042,10.338]
[1772478482982,47.0386053,87.112,87.043,46.06103502]
[1772478484285,10.33,87.111,87.063,10.335]
[1772478484775,47.0386053,87.112,87.043,46.06103502]
[1772478484979,47.0386053,87.103,87.043,46.06103502]
[1772478485781,47.0386053,87.12,87.043,46.06103502]
[1772478485982,183.88,87.16,87.081,46.06103502]
[1772478485983,47.0386053,87.159,87.081,46.06103502]
[1772478486180,8.52163899,87.158,87.081,46.06103502]
[1772478486379,55.56024429,87.158,87.076,46.06103502]
[1772478486581,47.0386053,87.156,87.076,46.06103502]
[1772478486885,9.05938255,87.16,87.06,9.05938255]
[1772478486886,10.327,87.135,87.079,56.39503502]
[1772478487283,47.0386053,87.151,87.079,56.39503502]
[1772478487984,47.0386053,87.169,87.089,46.06103502]
[1772478488388,47.0386053,87.159,87.089,46.06103502]
[1772478488786,9.05938255,87.16,87.089,46.06103502]
[1772478488787,47.0386053,87.157,87.089,46.06103502]
[1772478489289,10.328,87.131,87.089,46.06103502]
[1772478489588,47.0386053,87.157,87.089,46.06103502]
[1772478490390,10.327,87.131,87.089,46.06103502]
[1772478490988,10.328,87.123,87.071,46.06103502]
[1772478491185,56.09798785,87.14,87.041,46.06103502]
[1772478491685,47.0386053,87.117,87.041,46.06103502]
[1772478492491,10.333,87.086,87.041,46.06103502]
[1772478493885,47.0386053,87.111,87.041,46.06103502]
[1772478494092,47.0386053,87.099,87.0,9.05938255]
[1772478494587,47.0386053,87.099,87.0,14.22602987]
[1772478495085,10.332,87.091,87.039,10.338]
[1772478495287,47.0386053,87.099,87.02,9.05938255]
[1772478495886,10.331,87.105,87.02,9.05938255]
[1772478496093,9.05938255,87.12,87.021,44.93951268]
[1772478496291,53.82305667,87.12,87.021,44.93951268]
[1772478497180,53.82305667,87.12,87.02,9.05938255]
[1772478497181,10.331,87.098,87.047,44.93951268]
[1772478497786,10.331,87.098,87.02,9.05938255]
[1772478497787,46.02783228,87.091,87.029,47.77221855]
[1772478498485,10.336,87.059,87.001,47.77221855]
[1772478499186,10.335,87.067,87.001,47.77221855]
[1772478499590,46.02783228,87.069,87.001,47.77221855]
[1772478499988,46.02783228,87.087,87.001,47.77221855]
[1772478500792,10.335,87.071,87.022,47.77221855]
[1772478501092,46.02783228,87.087,87.022,47.77221855]
[1772478501592,10.334,87.072,87.022,47.77221855]
[1772478502292,46.02783228,87.087,87.022,47.77221855]
[1772478502293,10.334,87.08,87.03,10.339]
[1772478502593,46.02783228,87.087,87.03,10.339]
[1772478503894,10.334,87.074,87.03,10.339]
[1772478504290,46.02783228,87.087,87.022,58.11221855]
[1772478504495,10.334,87.076,87.022,47.77221855]
[1772478504797,46.02783228,87.087,87.022,47.77221855]
[1772478505096,46.02783228,87.085,87.022,47.77221855]
[1772478505693,46.02783228,87.085,87.024,47.77221855]
[1772478505893,46.02783228,87.102,87.024,47.77221855]
[1772478506197,46.02783228,87.1,87.024,47.77221855]
[1772478506391,46.02783228,87.098,87.024,47.77221855]
[1772478506588,46.02783228,87.096,87.024,47.77221855]
[1772478506791,46.02783228,87.094,87.024,47.77221855]
[1772478506988,10.334,87.077,87.032,10.339]
[1772478507289,46.02783228,87.077,86.986,47.77221855]
[1772478507491,9.0476266,87.09,87.013,47.77221855]
[1772478507693,8.35866118,87.093,87.013,47.77221855]
[1772478508100,10.333,87.087,87.036,58.11121855]
[1772478508295,10.333,87.087,87.036,47.77221855]
[1772478508795,10.334,87.078,87.036,47.77221855]
[1772478509004,46.02783228,87.094,87.036,47.77221855]
[1772478509894,10.333,87.086,87.036,47.77221855]
[1772478510599,46.02783228,87.094,87.019,47.77221855]
[1772478511394,46.02783228,87.079,87.019,47.77221855]
[1772478512301,46.02783228,87.079,86.966,160.96]
[1772478512302,46.02783228,87.102,87.035,47.77221855]
[1772478513402,10.332,87.09,87.049,10.337]
[1772478515996,10.332,87.09,87.02,9.0476266]
[1772478515997,46.02783228,87.071,87.01,47.77221855]
[1772478516601,46.02783228,87.071,87.012,10.341]
[1772478518302,10.336,87.058,87.012,10.341]
[1772478518703,46.02783228,87.088,87.02,47.77221855]
[1772478520200,10.333,87.084,87.032,10.339]
[1772478520410,46.02783228,87.088,87.032,10.339]
[1772478521210,10.334,87.077,87.032,10.339]
[1772478522006,10.334,87.077,87.02,47.77221855]
[1772478522007,10.336,87.062,87.023,10.34]
[1772478522204,10.336,87.062,87.02,47.77221855]
[1772478522405,46.02783228,87.077,87.02,47.77221855]
[1772478522708,46.02783228,87.077,87.02,58.11321855]
[1772478523809,10.335,87.07,87.026,10.34]
[1772478524006,56.36283228,87.07,87.026,10.34]
[1772478525711,46.02783228,87.088,87.033,47.77221855]
[1772478526712,10.333,87.081,87.037,10.339]
[1772478527410,10.334,87.075,87.033,47.77221855]
[1772478527806,46.02783228,87.088,87.033,47.77221855]
[1772478528006,10.333,87.084,87.033,47.77221855]
[1772478528207,46.29122023,87.106,87.033,47.77221855]
[1772478528612,10.333,87.086,87.045,10.338]
[1772478529212,10.332,87.093,87.051,10.337]
[1772478529407,46.29122023,87.106,87.033,47.77221855]
[1772478530315,10.333,87.087,87.044,10.338]
[1772478531113,46.29122023,87.123,87.052,48.67153462]
[1772478532216,10.329,87.119,87.052,48.67153462]
[1772478532616,46.29122023,87.141,87.052,48.67153462]
[1772478533420,16.10441828,87.187,87.04,48.67153462]
[1772478533421,46.29122023,87.134,87.04,48.67153462]
[1772478533721,160.577,87.174,87.019,48.67153462]
[1772478533722,46.29122023,87.099,87.019,48.67153462]
[1772478533910,46.29122023,87.099,87.021,10.34]
[1772478534116,46.29122023,87.083,87.021,59.01153462]
[1772478534511,10.334,87.075,87.021,59.01153462]
[1772478536316,46.29122023,87.03,86.982,14.24631913]
[1772478536516,46.29122023,87.03,86.965,48.67153462]
[1772478537520,10.34,87.029,86.971,59.01753462]
[1772478538721,46.29122023,87.03,86.971,59.01753462]
[1772478540920,46.29122023,87.03,86.951,48.67153462]
[1772478541319,46.29122023,87.03,86.96,48.67153462]
[1772478541623,46.29122023,87.049,86.96,48.67153462]
[1772478541824,46.29122023,87.049,86.971,48.67153462]
[1772478542323,10.339,87.031,86.974,59.01753462]
[1772478542722,56.63022023,87.031,86.974,59.01753462]
[1772478543322,56.63022023,87.031,86.953,48.67153462]
[1772478543323,46.29122023,87.031,86.953,48.67153462]
[1772478543623,46.29122023,87.029,86.953,48.67153462]
[1772478543826,46.29122023,87.004,86.953,48.67153462]
[1772478545521,46.29122023,87.022,86.953,48.67153462]
[1772478545723,10.338,87.045,86.989,10.344]
[1772478545928,10.338,87.045,86.988,48.67153462]
[1772478546125,46.29122023,87.049,86.988,48.67153462]
[1772478546826,10.339,87.038,86.989,10.344]
[1772478547024,46.29122023,87.049,86.988,48.67153462]
[1772478547623,46.29122023,87.069,86.991,48.67153462]
[1772478549326,10.335,87.068,87.013,10.341]
[1772478549526,46.29122023,87.069,87.013,10.341]
[1772478549729,46.29122023,87.069,86.991,48.67153462]
[1772478551226,10.336,87.06,87.012,10.342]
[1772478551525,46.29122023,87.027,86.918,48.67153462]
[1772478551720,46.29122023,86.989,86.885,21.43585643]
[1772478551925,46.29122023,86.979,86.864,48.67153462]
[1772478552226,10.35,86.94,86.839,48.67153462]
[1772478552432,0.79026018,86.91,86.813,48.79767047]
[1772478552629,0.79026018,86.945,86.841,48.79767047]
[1772478552827,34.45,86.909,86.841,48.79767047]
[1772478553027,0.79026018,86.928,86.841,48.79767047]
[1772478553235,0.79026018,86.928,86.841,46.79767047]
[1772478553827,0.79026018,86.928,86.86,9.0476266]
[1772478554030,0.79026018,86.928,86.84,9.0476266]
[1772478554224,0.79026018,86.928,86.812,12.02757823]
[1772478554425,4.98701872,86.886,86.812,12.02757823]
[1772478555028,10.357,86.883,86.812,12.02757823]
[1772478555327,4.98701872,86.886,86.812,12.02757823]
[1772478556125,4.98701872,86.886,86.812,59.93022436]
[1772478556731,4.98701872,86.886,86.813,47.90264613]
[1772478557431,4.98701872,86.886,86.812,12.02757823]
[1772478557432,3.1981646,86.884,86.812,12.02757823]
[1772478557830,161.047,86.92,86.831,47.90225748]
[1772478557831,3.1981646,86.905,86.831,47.90225748]
[1772478558339,4.33799265,86.933,86.831,47.90225748]
[1772478558542,4.33799265,86.933,86.833,10.363]
[1772478558738,4.33799265,86.93,86.834,47.37085193]
[1772478559139,4.33799265,86.93,86.851,47.37007777]
[1772478560139,4.4903763,86.928,86.851,47.37007777]
[1772478561037,4.50206485,86.925,86.851,47.37007777]
[1772478561342,4.50353322,86.899,86.81,9.0476266]
[1772478561840,2.00317169,86.936,86.831,47.4004473]
[1772478561841,4.57712045,86.935,86.831,47.4004473]
[1772478562440,5.79755962,86.932,86.851,46.79022772]
[1772478562845,5.79755962,86.932,86.876,10.358]
[1772478563047,5.86973489,86.958,86.876,57.14822772]
[1772478563948,5.94403671,86.953,86.876,57.14822772]
[1772478564443,5.83179049,86.975,86.891,46.84519112]
[1772478565143,5.90408012,86.969,86.868,46.84410483]
[1772478565538,9.07195163,86.97,86.823,163.22890075]
[1772478565539,5.90408012,86.929,86.841,46.84410483]
[1772478567257,7.75866809,86.924,86.854,10.36]
[1772478567746,7.82671696,86.912,86.842,56.34854444]
[1772478568847,10.355,86.902,86.842,56.34854444]
[1772478569345,20.79756273,87.033,86.823,2.00290075]
[1772478569346,8.03888666,86.928,86.863,56.27318449]
[1772478569748,10.353,86.916,86.843,45.91418449]
[1772478569946,10.353,86.916,86.846,10.361]
[1772478570142,10.353,86.916,86.846,56.21549686]
[1772478570453,10.353,86.916,86.846,45.85449686]
[1772478570645,10.354,86.912,86.856,10.36]
[1772478571347,10.354,86.912,86.846,45.85449686]
[1772478571645,10.352,86.924,86.846,45.85449686]
[1772478571851,8.29431196,86.938,86.871,45.85282352]
[1772478572054,8.3590814,86.957,86.871,45.85282352]
[1772478573248,18.42193001,86.95,86.884,10.357]
[1772478573652,8.07293001,86.949,86.884,10.357]
[1772478574056,8.07293001,86.949,86.884,46.04870851]
[1772478574255,8.07293001,86.949,86.893,46.04870851]
[1772478574851,34.45,86.979,86.893,46.04870851]
[1772478574852,8.15759457,86.969,86.893,46.04870851]
[1772478576357,10.347,86.967,86.911,10.354]
[1772478576556,8.14243296,86.966,86.893,46.04870851]
[1772478577250,10.347,86.963,86.893,46.04870851]
[1772478577457,10.347,86.963,86.91,10.354]
[1772478577651,10.347,86.963,86.893,46.04870851]
[1772478577652,8.14243296,86.966,86.893,46.04870851]
[1772478577852,8.206895,86.991,86.91,55.15769582]
[1772478578154,8.26697117,87.012,86.93,55.15769582]
[1772478578655,9.8388606,87.001,86.93,46.08574419]
[1772478578849,9.89916655,86.999,86.93,46.08574419]
[1772478579057,34.45,86.996,86.93,46.08574419]
[1772478579258,9.90287344,86.993,86.93,46.08574419]
[1772478579651,10.344,86.99,86.931,10.351]
[1772478580259,11.9442845,87.013,86.937,45.53752913]
[1772478580551,498.38197346,87.036,86.937,45.53752913]
[1772478580552,11.9442845,87.034,86.937,45.53752913]
[1772478581357,10.342,87.012,86.949,10.349]
[1772478581661,12.00690839,87.016,86.937,45.53752913]
[1772478581852,10.343,87.004,86.937,45.53752913]
[1772478582757,508.85715042,87.036,86.955,45.53752913]
[1772478582962,12.53296651,87.035,86.955,45.53752913]
[1772478583461,10.341,87.016,86.958,45.53752913]
[1772478583859,12.59453416,87.068,86.991,45.53752913]
[1772478584663,12.7550625,87.054,86.993,10.344]
[1772478585161,12.7550625,87.054,87.002,10.343]
[1772478585358,1.99971843,87.097,87.003,45.53752913]
[1772478585359,12.81578063,87.074,87.003,45.53752913]
[1772478585561,12.81578063,87.093,87.011,45.53752913]
[1772478585756,10.332,87.092,87.038,10.338]
[1772478586464,10.332,87.092,87.03,45.53752913]
[1772478586757,10.333,87.083,87.03,45.53752913]
[1772478587159,12.81578063,87.093,87.03,45.53752913]
[1772478587661,10.334,87.074,87.014,56.22200857]
[1772478587862,12.81578063,87.093,87.014,45.88100857]
[1772478588461,23.14778063,87.093,87.03,10.339]
[1772478588759,12.81578063,87.093,87.03,45.88100857]
[1772478589064,10.331,87.102,87.047,10.337]
[1772478589460,10.325,87.153,87.047,45.88100857]
[1772478589662,181.41827828,87.209,87.04,5.169711]
[1772478589663,9.07195163,87.17,87.091,45.88100857]
[1772478589870,10.75146672,87.175,87.091,45.88100857]
[1772478590164,1.99752605,87.187,87.111,45.88100857]
[1772478590462,10.82668223,87.206,87.131,45.88100857]
[1772478591060,30.88749422,87.199,87.049,160.806]
[1772478591267,9.07195163,87.16,87.07,9.07195163]
[1772478591565,30.88749422,87.159,87.07,9.07195163]
[1772478591759,30.88749422,87.159,87.06,9.07195163]
[1772478592365,30.88749422,87.159,87.08,9.07195163]
[1772478593070,10.326,87.147,87.085,45.88100857]
[1772478593558,30.88749422,87.159,87.085,45.88100857]
[1772478594570,41.21149422,87.159,87.089,45.88100857]
[1772478594768,9.07195163,87.18,87.089,45.88100857]
[1772478595171,30.49871987,87.179,87.089,45.88100857]
[1772478595362,10.324,87.16,87.092,45.88100857]
[1772478595764,30.56324774,87.159,87.07,45.88100857]
[1772478596170,30.56324774,87.159,87.077,45.88100857]
[1772478596870,39.48638621,87.18,87.089,45.88100857]
[1772478597069,30.41797762,87.179,87.089,45.88100857]
[1772478597469,10.324,87.158,87.091,45.88100857]
[1772478597868,30.41797762,87.179,87.101,45.88100857]
[1772478598068,30.48015836,87.199,87.101,45.88100857]
[1772478598264,10.323,87.17,87.109,45.88100857]
[1772478598769,30.51758116,87.179,87.109,45.88100857]
[1772478599666,10.326,87.141,87.088,45.88100857]
[1772478600065,30.58272446,87.16,87.088,45.88100857]
[1772478600372,10.323,87.166,87.098,45.88100857]
[1772478601272,10.325,87.156,87.1,45.88100857]
[1772478601669,30.71665108,87.179,87.1,45.88100857]
[1772478602069,30.77669473,87.159,87.061,45.88100857]
[1772478602270,10.328,87.123,87.063,45.88100857]
[1772478602775,10.328,87.123,87.065,45.88100857]
[1772478603373,5.728,87.123,87.065,45.88100857]
[1772478603878,10.327,87.133,87.067,45.88100857]
[1772478604981,10.327,87.133,87.072,45.88100857]
[1772478605373,30.77669473,87.159,87.072,45.88100857]
[1772478605679,31.18064601,87.139,87.072,45.88100857]
[1772478606379,10.329,87.117,87.072,45.88100857]
[1772478606976,31.18064601,87.139,87.072,45.88100857]
[1772478607774,491.7328987,87.256,87.05,45.88100857]
[1772478607775,30.86172662,87.119,87.05,45.88100857]
[1772478607971,48.69357879,87.099,87.0,9.07195163]
[1772478608770,48.50668109,87.079,86.98,9.07195163]
[1772478608970,48.50668109,87.079,86.98,14.23776786]
[1772478609176,57.65144005,87.1,87.0,9.07195163]
[1772478609878,10.335,87.07,87.017,10.341]
[1772478610078,10.335,87.07,87.018,45.88100857]
[1772478610880,10.336,87.062,87.018,45.88100857]
[1772478611078,34.45,87.11,86.991,45.88100857]
[1772478611079,48.82568181,87.079,86.991,45.88100857]
[1772478613084,34.45,87.11,87.017,45.88100857]
[1772478613085,9.07195163,87.09,87.017,45.88100857]
[1772478613773,10.335,87.067,87.017,45.88100857]
[1772478614785,10.335,87.067,87.018,10.341]
[1772478614985,10.334,87.075,87.018,56.22200857]
[1772478615382,58.08686334,87.09,87.018,56.22200857]
[1772478615588,9.07195163,87.07,86.995,45.88100857]
[1772478615784,49.11631435,87.069,86.995,45.88100857]
[1772478616483,49.11631435,87.069,86.935,10.40445406]
[1772478616484,49.20472999,87.043,86.972,56.84163099]
[1772478616681,49.20472999,87.069,86.972,46.49563099]
[1772478617587,49.20472999,87.069,86.988,47.16662581]
[1772478618185,10.341,87.015,86.963,57.51362581]
[1772478618686,46.91856077,87.029,86.963,47.16662581]
[1772478619383,160.789,87.06,86.963,47.16662581]
[1772478619384,46.91856077,87.053,86.963,47.16662581]
[1772478619591,46.91856077,87.053,86.971,47.16662581]
[1772478620987,46.91856077,87.053,86.982,47.16662581]
[1772478621693,46.91856077,87.053,86.992,10.344]
[1772478622490,46.91856077,87.079,86.992,47.16662581]
[1772478622990,46.91856077,87.059,86.971,47.16662581]
[1772478623187,46.91856077,87.019,86.951,47.16662581]
[1772478623388,46.91856077,87.019,86.931,47.16662581]
[1772478623891,46.91856077,87.019,86.947,10.349]
[1772478624088,46.91856077,87.019,86.931,47.16662581]
[1772478625090,10.344,86.993,86.942,10.35]
[1772478625294,46.91856077,87.019,86.931,47.16662581]
[1772478625695,10.344,86.993,86.95,10.349]
[1772478627195,10.344,86.993,86.942,10.35]
[1772478627798,55.98347288,87.0,86.91,47.16662581]
[1772478628092,55.98347288,87.0,86.922,47.16662581]
[1772478628700,46.91856077,87.0,86.922,47.16662581]
[1772478629301,10.345,86.988,86.937,10.35]
[1772478629597,46.91856077,87.019,86.937,47.16662581]
[1772478629799,10.343,87.0,86.937,47.16662581]
[1772478629995,20.672,87.061,86.937,47.16662581]
[1772478629996,46.91856077,87.06,86.937,47.16662581]
[1772478630202,46.91856077,87.039,86.941,47.16662581]
[1772478630891,46.91856077,87.038,86.941,47.16662581]
[1772478631296,46.91856077,87.038,86.957,10.348]
[1772478632303,10.342,87.01,86.965,10.347]
[1772478633504,10.344,86.992,86.938,10.35]
[1772478633702,10.344,86.992,86.935,47.16662581]
[1772478633902,46.91856077,87.015,86.935,47.16662581]
[1772478634097,10.344,86.994,86.945,10.35]
[1772478634303,46.91856077,87.013,86.935,47.16662581]
[1772478634495,46.91856077,86.999,86.935,47.16662581]
[1772478634902,10.346,86.979,86.936,10.351]
[1772478635401,46.91856077,86.993,86.921,337.83871442]
[1772478635605,10.348,86.96,86.915,47.16662581]
[1772478635807,46.91856077,86.959,86.867,47.16662581]
[1772478636906,46.91856077,86.959,86.887,47.16662581]
[1772478638208,10.349,86.951,86.892,57.52262581]
[1772478638408,46.91856077,86.959,86.892,57.52262581]
[1772478639006,10.349,86.95,86.892,57.52262581]
[1772478639207,46.91856077,86.979,86.901,47.16662581]
[1772478639612,46.91856077,86.959,86.881,47.16662581]
[1772478639811,10.351,86.933,86.883,10.357]
[1772478640005,46.91856077,86.959,86.881,47.16662581]
[1772478640612,10.352,86.924,86.881,47.16662581]
[1772478641010,10.351,86.932,86.881,47.16662581]
[1772478641311,9.06491211,86.96,86.882,47.16662581]
[1772478642313,46.91856077,86.959,86.882,47.16662581]
[1772478643616,10.35,86.941,86.884,10.357]
[1772478643817,10.35,86.941,86.885,47.16662581]
[1772478645023,10.351,86.934,86.885,47.16662581]
[1772478645518,46.91856077,86.941,86.885,47.16662581]
[1772478645722,10.35,86.943,86.885,47.16662581]
[1772478646524,10.349,86.952,86.895,57.52162581]
[1772478646725,46.91856077,86.96,86.895,47.16662581]
[1772478646916,46.91856077,86.979,86.914,47.16662581]
[1772478647321,46.91856077,86.979,86.893,10.356]
[1772478648117,10.35,86.939,86.891,47.16662581]
[1772478648320,50.0156338,86.951,86.891,47.16662581]
[1772478648824,10.35,86.941,86.892,10.356]
[1772478650021,10.351,86.934,86.891,47.16662581]
[1772478652629,10.351,86.935,86.888,10.356]
[1772478652825,50.0156338,86.951,86.902,10.355]
[1772478653131,50.0156338,86.951,86.888,47.17932451]
[1772478655331,10.351,86.935,86.889,10.356]
[1772478655531,10.351,86.935,86.87,9.06491211]
[1772478655532,50.0156338,86.951,86.89,47.17932451]
[1772478657832,10.348,86.956,86.906,47.17932451]
[1772478659134,10.349,86.948,86.907,10.354]
[1772478659330,50.42935827,86.962,86.889,47.17932451]
[1772478659630,10.349,86.95,86.911,10.354]
[1772478660029,50.42935827,86.962,86.905,47.17932451]
[1772478660231,10.35,86.942,86.905,47.17932451]
[1772478660533,50.42935827,86.962,86.905,47.17932451]
[1772478661028,50.42935827,86.939,86.874,47.17932451]
[1772478661422,50.42935827,86.939,86.84,9.06491211]
[1772478661423,50.42935827,86.939,86.841,47.17932451]
[1772478662128,10.353,86.92,86.858,47.17932451]
[1772478662730,10.353,86.912,86.865,10.359]
[1772478663326,50.42935827,86.939,86.879,47.17932451]
[1772478663521,34.45,86.97,86.879,47.17932451]
[1772478663522,50.42935827,86.959,86.879,47.17932451]
[1772478663932,10.351,86.937,86.894,10.356]
[1772478664526,10.351,86.937,86.885,10.357]
[1772478664730,10.351,86.937,86.885,57.53632451]
[1772478665735,50.42935827,86.959,86.891,47.17932451]
[1772478667340,10.349,86.946,86.898,10.355]
[1772478667940,10.35,86.94,86.891,47.17932451]
[1772478668136,50.42935827,86.943,86.861,47.17932451]
[1772478668738,10.352,86.921,86.881,10.357]
[1772478669341,10.353,86.914,86.874,10.358]
[1772478670442,10.352,86.921,86.874,10.358]
[1772478671543,10.353,86.915,86.874,10.358]
[1772478672245,50.42935827,86.939,86.88,10.357]
[1772478673244,10.351,86.93,86.88,10.357]
[1772478674745,50.42935827,86.93,86.872,10.358]
[1772478674951,50.42935827,86.93,86.86,47.17932451]
[1772478675847,48.48901947,86.914,86.844,47.73488148]
[1772478676643,48.48901947,86.932,86.857,47.73488148]
[1772478676843,48.48901947,86.919,86.857,47.73488148]
[1772478677149,10.354,86.91,86.857,47.73488148]
[1772478677649,9.06491211,86.92,86.829,48.69586509]
[1772478677650,10.356,86.889,86.829,48.69586509]
[1772478677844,51.36592236,86.903,86.829,48.69586509]